lending/lending_fUSD_20250913
["ID","MTS","AMOUNT","RATE_DAILY","PERIOD"]
[385356389,1757790768255,-400.0,0.00029863,2]
[385356390,1757790768265,-400.0,0.00029863,2]
[385356391,1757790768275,-752.16,0.00029863,2]
[385356392,1757790768284,-729.82,0.00029863,2]
[385356393,1757790768293,-843.08,0.00029863,2]
[385356394,1757790768302,-400.0,0.00029863,2]
[385356395,1757790768312,-924.42,0.00029863,2]
[385356396,1757790768321,-1791.52,0.00029863,2]
[385356397,1757790768331,-715.39,0.00029863,2]
[385356398,1757790768340,-400.0,0.00029863,2]
[385356399,1757790768350,-400.0,0.00029863,2]
[385356400,1757790768359,-905.52,0.00029863,2]
[385356401,1757790768369,-543.24,0.00029863,2]
[385356402,1757790768379,-405.71,0.00029863,2]
[385356403,1757790768388,-1125.91,0.00029863,2]
[385356404,1757790768398,-400.0,0.00029863,2]
[385356405,1757790768407,-405.06,0.00029863,2]
[385356406,1757790768416,-897.14,0.00029863,2]
[385356407,1757790768425,-838.71,0.00029863,2]
[385356408,1757790768435,-778.35,0.00029863,2]
[385356409,1757790768445,-1221.3,0.00029863,2]
[385356410,1757790768456,-1550.32,0.00029863,2]
[385356411,1757790768466,-1097.98,0.00029863,2]
[385356412,1757790768475,-746.12,0.00029863,2]
[385356413,1757790768488,-519.54,0.00029863,2]
[385356414,1757790768498,-400.0,0.00029863,2]
[385356415,1757790768508,-400.0,0.00029863,2]
[385356416,1757790768517,-812.08,0.00029863,2]
[385356417,1757790768526,-400.0,0.00029863,2]
[385356418,1757790768535,-1172.1,0.00029863,2]
[385356419,1757790768545,-1004.56,0.00029863,2]
[385356420,1757790768555,-406.12,0.00029863,2]
[385356421,1757790768565,-738.83,0.00029863,2]
[385356422,1757790768574,-400.0,0.00029863,2]
[385356423,1757790768584,-1445.07,0.00029863,2]
[385356424,1757790768593,-400.0,0.00029863,2]
[385356425,1757790768603,-681.1,0.00029863,2]
[385356426,1757790768612,-400.0,0.00029863,2]
[385356427,1757790768621,-400.0,0.00029863,2]
[385356428,1757790768631,-400.0,0.00029863,2]
[385356429,1757790768640,-400.0,0.00029863,2]
[385356430,1757790768650,-1822.15,0.00029863,2]
[385356431,1757790768660,-636.43,0.00029863,2]
[385356432,1757790768669,-187.14326454,0.00029863,2]
[385356433,1757790768679,-417.32,0.00029863,2]
[385356434,1757790768689,-400.0,0.00029863,2]
[385356435,1757790768699,-1015.89,0.00029863,2]
[385356436,1757790768708,-983.53,0.00029863,2]
[385356437,1757790768717,-761.25,0.00029863,2]
[385356438,1757790768726,-722.69,0.00029863,2]
[385356439,1757790768736,-400.0,0.00029863,2]
[385356440,1757790768745,-670.74,0.00029863,2]
[385356441,1757790768755,-400.0,0.00029863,2]
[385356442,1757790768764,-458.09,0.00029863,2]
[385356443,1757790768774,-411.62,0.00029863,2]
[385356444,1757790768783,-589.72,0.00029863,2]
[385356445,1757790768792,-400.0,0.00029863,2]
[385356446,1757790768802,-1393.14,0.00029863,2]
[385356447,1757790768812,-422.08,0.00029863,2]
[385356448,1757790768821,-400.0,0.00029863,2]
[385356449,1757790768831,-400.0,0.00029863,2]
[385356450,1757790768841,-1286.51,0.00029863,2]
[385356451,1757790768850,-400.0,0.00029863,2]
[385356452,1757790768860,-400.0,0.00029863,2]
[385356453,1757790768870,-1836.39,0.00029863,2]
[385356454,1757790768879,-400.0,0.00029863,2]
[385356455,1757790768889,-806.89,0.00029863,2]
[385356456,1757790768898,-3209.32,0.00029863,2]
[385356457,1757790768908,-1118.88,0.00029863,2]
[385356458,1757790768917,-2346.72,0.00029863,2]
[385356459,1757790768926,-862.09,0.00029863,2]
[385356460,1757790768936,-400.0,0.00029863,2]
[385356461,1757790768945,-156.14158986,0.00029863,2]
[385356462,1757790768954,-1033.98,0.00029863,2]
[385356463,1757790768964,-400.0,0.00029863,2]
[385356464,1757790768974,-400.0,0.00029863,2]
[385356465,1757790768983,-702.99,0.00029863,2]
[385356466,1757790768992,-1450.08,0.00029863,2]
[385356467,1757790769001,-896.46,0.00029863,2]
[385356468,1757790769010,-524.85,0.00029863,2]
[385356469,1757790769020,-837.65,0.00029863,2]
[385356470,1757790769030,-941.17,0.00029863,2]
[385356471,1757790769039,-872.8,0.00029863,2]
[385356472,1757790769049,-727.17,0.00029863,2]
[385356473,1757790769058,-711.83,0.00029863,2]
[385356474,1757790769067,-1015.07302687,0.00029863,2]
[385356475,1757790769077,-2033.09,0.00029863,2]
[385356476,1757790769087,-765.36,0.00029863,2]
[385356477,1757790769096,-778.2,0.00029863,2]
[385356478,1757790769105,-980.63,0.00029863,2]
[385356479,1757790769115,-538.72,0.00029863,2]
[385356480,1757790769124,-677.3,0.00029863,2]
[385356481,1757790769134,-1183.03,0.00029863,2]
[385356482,1757790769143,-599.03,0.00029863,2]
[385356483,1757790769152,-722.19,0.00029863,2]
[385356484,1757790769161,-1015.48,0.00029863,2]
[385356485,1757790769170,-965.24,0.00029863,2]
[385356486,1757790769179,-400.0,0.00029863,2]
[385356487,1757790769189,-653.28,0.00029863,2]
[385356488,1757790769198,-974.74,0.00029863,2]
[385356489,1757790769208,-400.0,0.00029863,2]
[385356490,1757790769217,-532.11,0.00029863,2]
[385356491,1757790769226,-775.6,0.00029863,2]
[385356492,1757790769236,-400.0,0.00029863,2]
[385356493,1757790769245,-400.0,0.00029863,2]
[385356494,1757790769255,-1047.99,0.00029863,2]
[385356495,1757790769264,-867.54,0.00029863,2]
[385356496,1757790769274,-400.0,0.00029863,2]
[385356497,1757790769283,-741.23,0.00029863,2]
[385356498,1757790769292,-603.59,0.00029863,2]
[385356499,1757790769301,-835.84,0.00029863,2]
[385356500,1757790769311,-2266.8,0.00029863,2]
[385356501,1757790769320,-1243.58,0.00029863,2]
[385356502,1757790769329,-526.24,0.00029863,2]
[385356503,1757790769339,-605.54,0.00029863,2]
[385356504,1757790769349,-502.15,0.00029863,2]
[385356505,1757790769358,-495.47,0.00029863,2]
[385356506,1757790769368,-462.88,0.00029863,2]
[385356507,1757790769377,-858.84,0.00029863,2]
[385356508,1757790769390,-708.83,0.00029863,2]
[385356509,1757790769399,-2089.21,0.00029863,2]
[385356510,1757790769410,-1484.39,0.00029863,2]
[385356511,1757790769422,-1139.82,0.00029863,2]
[385356512,1757790769431,-676.37,0.00029863,2]
[385356513,1757790769440,-920.38,0.00029863,2]
[385356514,1757790769451,-785.36,0.00029863,2]
[385356515,1757790769460,-400.0,0.00029863,2]
[385356516,1757790769469,-1042.18,0.00029863,2]
[385356517,1757790769480,-400.0,0.00029863,2]
[385356518,1757790769490,-400.0,0.00029863,2]
[385356519,1757790769499,-400.0,0.00029863,2]
[385356520,1757790769508,-714.23,0.00029863,2]
[385356521,1757790769517,-857.85,0.00029863,2]
[385356522,1757790769527,-894.39,0.00029863,2]
[385356523,1757790769536,-647.42,0.00029863,2]
[385356524,1757790769545,-513.3,0.00029863,2]
[385356525,1757790769556,-2338.03,0.00029863,2]
[385356526,1757790769565,-924.41,0.00029863,2]
[385356527,1757790769574,-841.74,0.00029863,2]
[385356528,1757790769584,-1469.88,0.00029863,2]
[385356529,1757790769593,-722.3,0.00029863,2]
[385356530,1757790769602,-415.27,0.00029863,2]
[385356531,1757790769611,-767.19,0.00029863,2]
[385356532,1757790769621,-814.0,0.00029863,2]
[385356533,1757790769630,-1229.51,0.00029863,2]
[385356534,1757790769639,-400.0,0.00029863,2]
[385356535,1757790769649,-844.21,0.00029863,2]
[385356536,1757790769658,-1485.88,0.00029863,2]
[385356537,1757790769667,-400.0,0.00029863,2]
[385356538,1757790769676,-449.16,0.00029863,2]
[385356539,1757790769685,-865.66,0.00029863,2]
[385356540,1757790769695,-2265.68,0.00029863,2]
[385356541,1757790769704,-572.0,0.00029863,2]
[385356542,1757790769713,-863.57,0.00029863,2]
[385356543,1757790769722,-2112.49,0.00029863,2]
[385356544,1757790769731,-1107.28,0.00029863,2]
[385356545,1757790769740,-510.21,0.00029863,2]
[385356546,1757790769749,-400.0,0.00029863,2]
[385356547,1757790769759,-1170.47,0.00029863,2]
[385356548,1757790769770,-841.3,0.00029863,2]
[385356549,1757790769780,-1028.51,0.00029863,2]
[385356550,1757790769791,-856.96,0.00029863,2]
[385356551,1757790769800,-400.0,0.00029863,2]
[385356552,1757790769810,-906.61,0.00029863,2]
[385356553,1757790769819,-1458.58,0.00029863,2]
[385356554,1757790769829,-701.85,0.00029863,2]
[385356555,1757790769838,-4256.1,0.00029863,2]
[385356556,1757790769847,-413.20915092,0.00029863,2]
[385356557,1757790769857,-1006.96,0.00029863,2]
[385356558,1757790769865,-728.15,0.00029863,2]
[385356559,1757790769875,-400.0,0.00029863,2]
[385356560,1757790769884,-925.96,0.00029863,2]
[385356561,1757790769893,-400.0,0.00029863,2]
[385356562,1757790769903,-445.69,0.00029863,2]
[385356563,1757790769913,-1198.57,0.00029863,2]
[385356564,1757790769924,-2857.69,0.00029863,2]
[385356565,1757790769934,-1974.67,0.00029863,2]
[385356566,1757790769943,-400.0,0.00029863,2]
[385356567,1757790769952,-847.13,0.00029863,2]
[385356568,1757790769961,-400.0,0.00029863,2]
[385356569,1757790769971,-2990.98,0.00029863,2]
[385356570,1757790769980,-400.0,0.00029863,2]
[385356571,1757790770091,-834.58,0.00029863,2]
[385356572,1757790770100,-2302.98,0.00029863,2]
[385356573,1757790770110,-400.0,0.00029863,2]
[385356574,1757790770120,-2111.33,0.00029863,2]
[385356575,1757790770129,-1747.56,0.00029863,2]
[385356576,1757790770139,-466.82,0.00029863,2]
[385356577,1757790770148,-2233.25,0.00029863,2]
[385356578,1757790770157,-400.0,0.00029863,2]
[385356579,1757790770166,-1255.2,0.00029863,2]
[385356580,1757790770176,-475.14423793,0.00029863,2]
[385356581,1757790770185,-400.0,0.00029863,2]
[385356582,1757790770194,-416.89802645,0.00029863,2]
[385356583,1757790770203,-694.91,0.00029863,2]
[385356584,1757790770212,-1963.87,0.00029863,2]
[385356585,1757790770221,-1143.85,0.00029863,2]
[385356586,1757790770231,-400.0,0.00029863,2]
[385356587,1757790770240,-400.0,0.00029863,2]
[385356588,1757790770249,-400.0,0.00029863,2]
[385356589,1757790770260,-807.66,0.00029863,2]
[385356590,1757790770274,-2263.39,0.00029863,2]
[385356591,1757790770292,-400.0,0.00029863,2]
[385356592,1757790770301,-927.88,0.00029863,2]
[385356593,1757790770310,-952.59,0.00029863,2]
[385356594,1757790770321,-931.48,0.00029863,2]
[385356595,1757790770330,-400.0,0.00029863,2]
[385356596,1757790770341,-669.04,0.00029863,2]
[385356597,1757790770351,-1333.33,0.00029863,2]
[385356598,1757790770360,-944.31,0.00029863,2]
[385356599,1757790770369,-400.0,0.00029863,2]
[385356600,1757790770378,-1798.63,0.00029863,2]
[385356601,1757790770388,-711.99,0.00029863,2]
[385356602,1757790770397,-1079.08,0.00029863,2]
[385356603,1757790770408,-1030.24,0.00029863,2]
[385356604,1757790770417,-568.52,0.00029863,2]
[385356605,1757790770426,-977.53,0.00029863,2]
[385356606,1757790770437,-923.82,0.00029863,2]
[385356607,1757790770446,-400.0,0.00029863,2]
[385356608,1757790770455,-1374.51,0.00029863,2]
[385356609,1757790770465,-400.0,0.00029863,2]
[385356610,1757790770474,-707.41,0.00029863,2]
[385356611,1757790770487,-539.76,0.00029863,2]
[385356612,1757790770495,-532.15,0.00029863,2]
[385356613,1757790770504,-1021.66,0.00029863,2]
[385356614,1757790770514,-796.82,0.00029863,2]
[385356615,1757790770523,-786.29,0.00029863,2]
[385356616,1757790770532,-1683.27,0.00029863,2]
[385356617,1757790770541,-400.0,0.00029863,2]
[385356618,1757790770550,-923.85,0.00029863,2]
[385356619,1757790770559,-585.84,0.00029863,2]
[385356620,1757790770569,-1254.84,0.00029863,2]
[385356621,1757790770578,-400.0,0.00029863,2]
[385356622,1757790770587,-1026.54,0.00029863,2]
[385356623,1757790770597,-492.79,0.00029863,2]
[385356624,1757790770606,-2328.06,0.00029863,2]
[385356625,1757790770615,-400.0,0.00029863,2]
[385356626,1757790770624,-1854.12,0.00029863,2]
[385356627,1757790770633,-3059.22,0.00029863,2]
[385356628,1757790770643,-1159.49,0.00029863,2]
[385356629,1757790770654,-1000.0,0.00029863,2]
[385356630,1757790770663,-618.58,0.00029863,2]
[385356631,1757790770672,-400.0,0.00029863,2]
[385356632,1757790770681,-1262.94,0.00029863,2]
[385356633,1757790770690,-400.0,0.00029863,2]
[385356634,1757790770702,-400.0,0.00029863,2]
[385356635,1757790770711,-666.27,0.00029863,2]
[385356636,1757790770721,-1602.35,0.00029863,2]
[385356637,1757790770731,-2778.98,0.00029863,2]
[385356638,1757790770740,-400.0,0.00029863,2]
[385356639,1757790770749,-400.0,0.00029863,2]
[385356640,1757790770758,-438.09,0.00029863,2]
[385356641,1757790770767,-344.99,0.00029863,2]
[385356642,1757790770777,-523.76,0.00029863,2]
[385356643,1757790770786,-734.11,0.00029863,2]
[385356644,1757790770796,-634.16,0.00029863,2]
[385356645,1757790770805,-887.05,0.00029863,2]
[385356646,1757790770815,-400.0,0.00029863,2]
[385356647,1757790770825,-942.86,0.00029863,2]
[385356648,1757790770834,-1288.99,0.00029863,2]
[385356649,1757790770843,-400.0,0.00029863,2]
[385356650,1757790770852,-499.53493546,0.00029863,2]
[385356651,1757790770861,-1697.7,0.00029863,2]
[385356652,1757790770871,-1448.36,0.00029863,2]
[385356653,1757790770880,-2431.97,0.00029863,2]
[385356654,1757790770889,-488.5,0.00029863,2]
[385356655,1757790770898,-655.13,0.00029863,2]
[385356656,1757790770907,-693.6,0.00029863,2]
[385356657,1757790770917,-985.78,0.00029863,2]
[385356658,1757790770926,-400.0,0.00029863,2]
[385356659,1757790770936,-914.74,0.00029863,2]
[385356660,1757790770945,-3119.56,0.00029863,2]
[385356661,1757790770954,-1199.53,0.00029863,2]
[385356662,1757790770963,-400.0,0.00029863,2]
[385356663,1757790770973,-869.51,0.00029863,2]
[385356664,1757790770982,-492.5,0.00029863,2]
[385356665,1757790770991,-400.0,0.00029863,2]
[385356666,1757790771001,-683.66,0.00029863,2]
[385356667,1757790771010,-1155.29,0.00029863,2]
[385356668,1757790771020,-1010.79,0.00029863,2]
[385356669,1757790771029,-400.0,0.00029863,2]
[385356670,1757790771038,-655.9,0.00029863,2]
[385356671,1757790771047,-450.64,0.00029863,2]
[385356672,1757790771057,-1130.65,0.00029863,2]
[385356673,1757790771066,-400.0,0.00029863,2]
[385356674,1757790771077,-1727.97,0.00029863,2]
[385356675,1757790771085,-536.28,0.00029863,2]
[385356676,1757790771095,-971.87,0.00029863,2]
[385356677,1757790771104,-920.05,0.00029863,2]
[385356678,1757790771114,-1049.74,0.00029863,2]
[385356679,1757790771123,-807.81,0.00029863,2]
[385356680,1757790771133,-1540.01,0.00029863,2]
[385356681,1757790771143,-1074.98,0.00029863,2]
[385356682,1757790771152,-767.61,0.00029863,2]
[385356683,1757790771160,-400.0,0.00029863,2]
[385356684,1757790771169,-406.05109239,0.00029863,2]
[385356685,1757790771178,-400.0,0.00029863,2]
[385356686,1757790771188,-331.28859409,0.00029863,2]
[385356687,1757790771197,-538.79251947,0.00029863,2]
[385356688,1757790771206,-843.61,0.00029863,2]
[385356689,1757790771216,-721.19,0.00029863,2]
[385356690,1757790771225,-798.34,0.00029863,2]
[385356691,1757790771235,-400.0,0.00029863,2]
[385356692,1757790771245,-1507.18,0.00029863,2]
[385356693,1757790771254,-1380.97,0.00029863,2]
[385356694,1757790771263,-736.94,0.00029863,2]
[385356695,1757790771272,-8779.55,0.00029863,2]
[385356696,1757790771282,-400.0,0.00029863,2]
[385356697,1757790771291,-400.0,0.00029863,2]
[385356698,1757790771300,-1003.9,0.00029863,2]
[385356699,1757790771310,-594.63,0.00029863,2]
[385356700,1757790771319,-506.79,0.00029863,2]
[385356701,1757790771329,-729.26,0.00029863,2]
[385356702,1757790771338,-2622.41,0.00029863,2]
[385356703,1757790771347,-649.71,0.00029863,2]
[385356704,1757790771357,-666.01,0.00029863,2]
[385356705,1757790771366,-813.26,0.00029863,2]
[385356706,1757790771376,-752.66,0.00029863,2]
[385356707,1757790771386,-500.0,0.00029863,2]
[385356708,1757790771395,-745.71,0.00029863,2]
[385356709,1757790771405,-851.12,0.00029863,2]
[385356710,1757790771414,-1034.54,0.00029863,2]
[385356711,1757790771423,-436.15,0.00029863,2]
[385356712,1757790771433,-990.05,0.00029863,2]
[385356713,1757790771442,-955.65,0.00029863,2]
[385356714,1757790771451,-931.13,0.00029863,2]
[385356715,1757790771461,-2504.84,0.00029863,2]
[385356716,1757790771470,-20273.13055608,0.0002987,2]
[385356717,1757790771481,-1000.0,0.00029877,2]
[385356718,1757790771492,-841545.04843898,0.0002988,2]
[385356719,1757790771501,-726.0,0.00029915,2]
[385356720,1757790771510,-18853.0,0.00029915,2]
[385356721,1757790771519,-4168.0,0.00029915,2]
[385356722,1757790771530,-6173.0,0.00029915,2]
[385356723,1757790771539,-1177.0,0.00029915,2]
[385356724,1757790771548,-1425.0,0.00029946,2]
[385356725,1757790771560,-331.0,0.0002995,2]
[385356726,1757790771571,-500.0,0.00029965,2]
[385356727,1757790771580,-1226.0,0.00029969,3]
[385356728,1757790771590,-155.0,0.00029969,3]
[385356729,1757790771599,-1425.0,0.00029984,2]
[385356730,1757790771608,-106256.7990844,0.0003,2]
[385356731,1757790771617,-2000.0,0.0003,2]
[385356732,1757790771626,-250.0,0.0003,7]
[385356733,1757790771635,-5500.0,0.0003,3]
[385356734,1757790771645,-155.51,0.0003,7]
[385356735,1757790771655,-1008.32,0.0003,7]
[385356736,1757790771664,-874.99,0.0003,7]
[385356737,1757790771673,-3206.705462,0.00030086,4]
[385356738,1757790771682,-2492.142925,0.00030086,4]
[385356739,1757790771691,-3896.254989,0.00030086,4]
[385356740,1757790771700,-1425.0,0.00030087,2]
[385356741,1757790771709,-576.006141,0.000301,2]
[385356742,1757790771718,-1425.0,0.00030107,2]
[385356743,1757790771727,-151.72993896,0.0003013,7]
[385356744,1757790771736,-400.0,0.00030136,2]
[385356745,1757790771745,-403.48,0.00030136,2]
[385356746,1757790771755,-400.0,0.00030136,2]
[385356747,1757790771764,-400.0,0.00030136,2]
[385356748,1757790771773,-699.06,0.00030136,2]
[385356749,1757790771782,-888.74,0.00030136,2]
[385356750,1757790771791,-1067.33,0.00030136,2]
[385356751,1757790771800,-494.9,0.00030136,2]
[385356752,1757790771810,-400.0,0.00030136,2]
[385356753,1757790771819,-1011.1,0.00030136,2]
[385356754,1757790771829,-411.04,0.00030136,2]
[385356755,1757790771838,-400.0,0.00030136,2]
[385356756,1757790771847,-321.6,0.00030136,2]
[385356757,1757790771856,-400.0,0.00030136,2]
[385356758,1757790771866,-400.0,0.00030136,2]
[385356759,1757790771875,-436.55,0.00030136,2]
[385356760,1757790771885,-415.46,0.00030136,2]
[385356761,1757790771894,-1222.47,0.00030136,2]
[385356762,1757790771904,-400.0,0.00030136,2]
[385356763,1757790771913,-622.37,0.00030136,2]
[385356764,1757790771922,-751.49,0.00030136,2]
[385356765,1757790771931,-507.64831182,0.00030136,2]
[385356766,1757790771940,-512.06,0.00030136,2]
[385356767,1757790771949,-266.19792262,0.00030136,2]
[385356768,1757790771958,-400.0,0.00030136,2]
[385356769,1757790771967,-400.0,0.00030136,2]
[385356770,1757790771976,-516.89,0.00030136,2]
[385356771,1757790771985,-400.0,0.00030136,2]
[385356772,1757790771994,-572.28,0.00030136,2]
[385356773,1757790772003,-400.0,0.00030136,2]
[385356774,1757790772012,-400.0,0.00030136,2]
[385356775,1757790772021,-400.0,0.00030136,2]
[385356776,1757790772031,-337.52909911,0.00030136,2]
[385356777,1757790772040,-405.34,0.00030136,2]
[385356778,1757790772049,-892.3,0.00030136,2]
[385356779,1757790772058,-400.0,0.00030136,2]
[385356780,1757790772067,-2090.35,0.00030136,2]
[385356781,1757790772076,-445.77,0.00030136,2]
[385356782,1757790772085,-849.51,0.00030136,2]
[385356783,1757790772094,-400.0,0.00030136,2]
[385356784,1757790772103,-764.33,0.00030136,2]
[385356785,1757790772112,-812.38,0.00030136,2]
[385356786,1757790772121,-579.38,0.00030136,2]
[385356787,1757790772130,-400.0,0.00030136,2]
[385356788,1757790772139,-400.0,0.00030136,2]
[385356789,1757790772148,-400.0,0.00030136,2]
[385356790,1757790772157,-302.73161431,0.00030136,2]
[385356791,1757790772166,-400.0,0.00030136,2]
[385356792,1757790772174,-400.0,0.00030136,2]
[385356793,1757790772183,-400.0,0.00030136,2]
[385356794,1757790772192,-400.0,0.00030136,2]
[385356795,1757790772201,-400.0,0.00030136,2]
[385356796,1757790772211,-1141.14,0.00030136,2]
[385356797,1757790772220,-593.32,0.00030136,2]
[385356798,1757790772230,-400.0,0.00030136,2]
[385356799,1757790772239,-762.02,0.00030136,2]
[385356800,1757790772248,-400.0,0.00030136,2]
[385356801,1757790772257,-400.0,0.00030136,2]
[385356802,1757790772267,-400.0,0.00030136,2]
[385356803,1757790772276,-633.2,0.00030136,2]
[385356804,1757790772285,-400.0,0.00030136,2]
[385356805,1757790772294,-548.72,0.00030136,2]
[385356806,1757790772303,-400.0,0.00030136,2]
[385356807,1757790772312,-400.0,0.00030136,2]
[385356808,1757790772321,-400.0,0.00030136,2]
[385356809,1757790772330,-400.0,0.00030136,2]
[385356810,1757790772339,-411.96,0.00030136,2]
[385356811,1757790772349,-653.34,0.00030136,2]
[385356812,1757790772358,-400.0,0.00030136,2]
[385356813,1757790772367,-400.0,0.00030136,2]
[385356814,1757790772377,-891.73,0.00030136,2]
[385356815,1757790772385,-1354.32,0.00030136,2]
[385356816,1757790772395,-598.23,0.00030136,2]
[385356817,1757790772405,-518.98,0.00030136,2]
[385356818,1757790772414,-925.24,0.00030136,2]
[385356819,1757790772423,-415.57225087,0.00030136,2]
[385356820,1757790772433,-443.15456305,0.00030136,2]
[385356821,1757790772442,-722.44,0.00030136,2]
[385356822,1757790772452,-400.0,0.00030136,2]
[385356823,1757790772461,-400.0,0.00030136,2]
[385356824,1757790772470,-506.66,0.00030136,2]
[385356825,1757790772485,-421.10889918,0.00030136,2]
[385356826,1757790772494,-1909.11,0.00030136,2]
[385356827,1757790772504,-886.75,0.00030136,2]
[385356828,1757790772513,-400.0,0.00030136,2]
[385356829,1757790772523,-400.0,0.00030136,2]
[385356830,1757790772532,-200.0,0.00030136,2]
[385356831,1757790772542,-400.0,0.00030136,2]
[385356832,1757790772551,-400.0,0.00030136,2]
[385356833,1757790772564,-345.75679773,0.00030136,2]
[385356834,1757790772575,-400.0,0.00030136,2]
[385356835,1757790772585,-1138.1,0.00030136,2]
[385356836,1757790772594,-400.0,0.00030136,2]
[385356837,1757790772603,-400.0,0.00030136,2]
[385356838,1757790772612,-400.0,0.00030136,2]
[385356839,1757790772621,-180.29338794,0.00030136,2]
[385356840,1757790772630,-400.0,0.00030136,2]
[385356841,1757790772639,-576.48,0.00030136,2]
[385356842,1757790772649,-400.0,0.00030136,2]
[385356843,1757790772658,-400.0,0.00030136,2]
[385356844,1757790772668,-712.7,0.00030136,2]
[385356845,1757790772677,-400.0,0.00030136,2]
[385356846,1757790772687,-400.0,0.00030136,2]
[385356847,1757790772696,-400.0,0.00030136,2]
[385356848,1757790772705,-2782.51,0.00030136,2]
[385356849,1757790772714,-400.0,0.00030136,2]
[385356850,1757790772724,-400.0,0.00030136,2]
[385356851,1757790772733,-749.03,0.00030136,2]
[385356852,1757790772742,-476.93,0.00030136,2]
[385356853,1757790772752,-400.0,0.00030136,2]
[385356854,1757790772761,-778.01,0.00030136,2]
[385356855,1757790772771,-652.17,0.00030136,2]
[385356856,1757790772780,-1095.32,0.00030136,2]
[385356857,1757790772789,-400.0,0.00030136,2]
[385356858,1757790772798,-450.34,0.00030136,2]
[385356859,1757790772807,-623.72,0.00030136,2]
[385356860,1757790772817,-400.0,0.00030136,2]
[385356861,1757790772826,-522.52,0.00030136,2]
[385356862,1757790772834,-1025.68,0.00030136,2]
[385356863,1757790772844,-400.0,0.00030136,2]
[385356864,1757790772853,-1547.47,0.00030136,2]
[385356865,1757790772862,-400.0,0.00030136,2]
[385356866,1757790772871,-400.0,0.00030136,2]
[385356867,1757790772880,-452.08,0.00030136,2]
[385356868,1757790772889,-400.0,0.00030136,2]
[385356869,1757790772900,-400.0,0.00030136,2]
[385356870,1757790772910,-954.04,0.00030136,2]
[385356871,1757790772919,-972.47,0.00030136,2]
[385356872,1757790772929,-400.0,0.00030136,2]
[385356873,1757790772938,-440.6,0.00030136,2]
[385356874,1757790772947,-400.0,0.00030136,2]
[385356875,1757790772957,-400.0,0.00030136,2]
[385356876,1757790772966,-400.0,0.00030136,2]
[385356877,1757790772975,-1107.3,0.00030136,2]
[385356878,1757790772985,-1360.89,0.00030136,2]
[385356879,1757790772995,-438.49,0.00030136,2]
[385356880,1757790773005,-511.89,0.00030136,2]
[385356881,1757790773014,-875.02,0.00030136,2]
[385356882,1757790773024,-441.06,0.00030136,2]
[385356883,1757790773033,-540.34,0.00030136,2]
[385356884,1757790773042,-432.57,0.00030136,2]
[385356885,1757790773051,-605.1,0.00030136,2]
[385356886,1757790773060,-193.55170991,0.00030136,2]
[385356887,1757790773069,-979.03,0.00030136,2]
[385356888,1757790773079,-639.66,0.00030136,2]